[Event "ESP-ch Seniors 2017"]
[Site "Altea"]
[Date "2017.10.10"]
[Round "4"]
[White "Fernandez Vicente, Carmelo"]
[Black "Anguera Maestro, Jaime"]
[Result "1/2-1/2"]
[ECO "A36"]
[WhiteElo "2044"]
[BlackElo "2029"]
[Annotator "NA"]
[PlyCount "30"]
[EventDate "2017.??.??"]
[EventType "swiss"]
[EventCountry "ESP"]
[SourceTitle "playchess.com"]
[Source "ChessBase"]
[SourceQuality "1"]
[TimeControl "5400+30"]

1. c4 {[%emt 0:00:00]} c5 {[%emt 0:00:14]} 2. Nc3 {[%emt 0:00:31]} Nc6 {[%emt 0:00:08]} 3. g3 {[%emt 0:00:18]} g6 {[%emt 0:00:12]} 4. Bg2 {[%emt 0:00:45]} Bg7 {[%emt 0:00:27]} 5. e3 {[%emt 0:00:42]} d6 {[%emt 0:01:37]} 6. Nge2 {[%emt 0:00:54]} e5 {[%emt 0:01:14]} 7. b3 {[%emt 0:02:38]} Bf5 {[%emt 0:03:49]} 8. e4 {[%emt 0:03:07]} Bg4 {[%emt 0:01:16]} 9. f3 {[%emt 0:03:40]} Be6 {[%emt 0:01:06]} 10. d3 {[%emt 0:00:15]} Nge7 {[%emt 0:01:35]} 11. Bg5 {[%emt 0:01:51]} h6 {[%emt 0:01:56]} 12. Be3 {[%emt 0:00:44]} O-O {[%emt 0:00:38]} 13. Qd2 {[%emt 0:01:08]} Kh7 {[%emt 0:00:26]} 14. O-O {[%emt 0:00:45]} Nd4 {[%emt 0:01:06]} 15. Rab1 {[%emt 0:04:22]} Nec6 {[%emt 0:03:26]} 1/2-1/2

[Event "ESP-ch Seniors 2017"]
[Site "Altea"]
[Date "2017.10.10"]
[Round "4"]
[White "Garcia Galeote, Lorenzo"]
[Black "Fernandez Hernandez, Gerardo"]
[Result "0-1"]
[ECO "A03"]
[WhiteElo "1998"]
[BlackElo "2178"]
[Annotator "NA"]
[PlyCount "36"]
[EventDate "2017.??.??"]
[EventType "swiss"]
[EventCountry "ESP"]
[SourceTitle "playchess.com"]
[Source "ChessBase"]
[SourceQuality "1"]
[TimeControl "5400+30"]

1. f4 {[%emt 0:00:00]} d5 {[%emt 0:00:52]} 2. Nf3 {[%emt 0:00:00]} Nf6 {[%emt 0:00:05]} 3. e3 {[%emt 0:00:04]} Bg4 {[%emt 0:00:19]} 4. Be2 {[%emt 0:00:28]} Nbd7 {[%emt 0:00:25]} 5. b3 {[%emt 0:03:46]} e6 {[%emt 0:01:34]} 6. Bb2 {[%emt 0:00:40]} Bd6 {[%emt 0:01:55]} 7. Ne5 {[%emt 0:01:32]} Bxe2 {[%emt 0:00:34]} 8. Qxe2 {[%emt 0:00:07]} O-O {[%emt 0:03:18]} 9. O-O {[%emt 0:00:10]} Ne8 {[%emt 0:04:49]} 10. c4 {[%emt 0:06:30]} c6 {[%emt 0:02:23]} 11. d3 {[%emt 0:04:51]} f6 {[%emt 0:05:32]} 12. Qg4 {[%emt 0:06:20]} fxe5 {[%emt 0:11:10]} 13. Qxe6+ {[%emt 0:01:01]} Kh8 {[%emt 0:00:53]} 14. cxd5 {[%emt 0:02:28]} Nc5 {[%emt 0:08:46]} 15. Qg4 {[%emt 0:02:22]} Nxd3 {[%emt 0:01:36]} 16. Ba3 {[%emt 0:02:22]} Qb6 {[%emt 0:08:51]} 17. Rf3 {[%emt 0:06:50]} Rxf4 {[%emt 0:10:49]} 18. Bxd6 {[%emt 0:01:34]} Nxd6 $19 {[%emt 0:00:03]} ({Weaker is} 18... Rxg4 19. Rf8#) 0-1

[Event "ESP-ch Seniors 2017"]
[Site "Altea"]
[Date "2017.10.10"]
[Round "4"]
[White "Sanz Bastos, Fernando"]
[Black "Simon Padros, Emili"]
[Result "0-1"]
[ECO "A02"]
[WhiteElo "1981"]
[BlackElo "2153"]
[Annotator "ChessBase"]
[PlyCount "54"]
[EventDate "2017.??.??"]
[EventType "swiss"]
[EventCountry "ESP"]
[SourceTitle "playchess.com"]
[Source "ChessBase"]
[SourceQuality "1"]
[TimeControl "5400+30"]

1. f4 {[%emt 0:00:00]} c5 {[%emt 0:01:23]} 2. e4 {[%emt 0:00:41]} Nc6 {[%emt 0:00:36]} 3. Nc3 {[%emt 0:00:23]} d6 {[%emt 0:00:46]} 4. Bb5 {[%emt 0:01:29]} Bd7 {[%emt 0:01:57]} 5. Nf3 {[%emt 0:00:18]} e6 {[%emt 0:01:29]} 6. O-O {[%emt 0:00:52]} Nf6 {[%emt 0:02:08]} 7. d3 {[%emt 0:00:22]} Be7 {[%emt 0:02:14]} 8. a3 {[%emt 0:09:42]} O-O {[%emt 0:02:54]} 9. Bxc6 {[%emt 0:00:09]} Bxc6 {[%emt 0:01:05]} 10. Qe1 {[%emt 0:01:14]} b5 {[%emt 0:06:02]} 11. Qg3 {[%emt 0:07:20]} Kh8 {[%emt 0:10:18]} 12. e5 {[%emt 0:04:31]} Nd7 {[%emt 0:06:54]} 13. exd6 {[%emt 0:06:05]} Bxd6 {[%emt 0:00:24]} 14. Ne4 {[%emt 0:01:39]} Be7 {[%emt 0:02:47]} 15. Be3 {[%emt 0:01:50]} Bd5 {[%emt 0:06:11]} 16. Qh3 {[%emt 0:05:43]} c4 {[%emt 0:12:02]} 17. Neg5 {[%emt 0:01:09]} h6 {[%emt 0:04:27]} 18. dxc4 {[%emt 0:10:11]} bxc4 {[%emt 0:00:22]} 19. Rad1 {[%emt 0:00:20]} Kg8 {[%emt 0:02:50]} 20. Nxf7 {[%emt 0:09:48]} Rxf7 {[%emt 0:02:46]} 21. Ne5 {[%emt 0:00:23]} Nxe5 {[%emt 0:01:20]} 22. fxe5 {[%emt 0:00:03]} Rxf1+ {[%emt 0:01:08]} 23. Rxf1 {[%emt 0:00:02]} Bg5 {[%emt 0:05:58]} 24. Bc5 {[%emt 0:00:27]} Qa5 {[%emt 0:01:31]} 25. Bd6 {[%emt 0:00:21]} Qd2 {[%emt 0:00:34]} 26. Qg4 {[%emt 0:01:05]} h5 {[%emt 0:01:25]} 27. Qg3 {[%emt 0:01:00]} Qe3+ {[%emt 0:00:24]} 0-1

[Event "ESP-ch Seniors 2017"]
[Site "Altea"]
[Date "2017.10.10"]
[Round "4"]
[White "Vallbona Domingo, Joan"]
[Black "Fernandez Perez, Josep"]
[Result "1/2-1/2"]
[ECO "A21"]
[WhiteElo "1889"]
[BlackElo "2045"]
[Annotator "NA"]
[PlyCount "33"]
[EventDate "2017.??.??"]
[EventType "swiss"]
[EventCountry "ESP"]
[SourceTitle "playchess.com"]
[Source "ChessBase"]
[SourceQuality "1"]
[TimeControl "5400+30"]

{[%evp 24,33,-6,0,-20,-2,-6,0,-14,-9,0,0]} 1. c4 {[%emt 0:00:00]} e5 {[%emt 0:00:11]} 2. Nc3 {[%emt 0:00:00]} d6 {[%emt 0:00:22]} 3. Nf3 {[%emt 0:01:20]} f5 {[%emt 0:00:29]} 4. d4 {[%emt 0:00:08]} e4 {[%emt 0:00:16]} 5. Ng5 {[%emt 0:00:14]} Be7 {[%emt 0:00:22]} 6. h4 {[%emt 0:00:51]} c6 {[%emt 0:00:32]} 7. g3 {[%emt 0:07:22]} Nf6 {[%emt 0:02:09]} 8. d5 {[%emt 0:01:43]} h6 {[%emt 0:01:41]} 9. Nh3 {[%emt 0:00:22]} Nbd7 {[%emt 0:00:43]} 10. Bg2 {[%emt 0:10:41]} Ne5 {[%emt 0:07:55]} 11. b3 {[%emt 0:07:46]} O-O {[%emt 0:03:29]} 12. O-O {[%emt 0:15:26]} Nh5 {[%emt 0:25:17]} 13. dxc6 {[%emt 0:12:36]} bxc6 {[%emt 0:00:51] [#]} 14. Nd5 $1 {[%emt 0:00:15]} Be6 {[%emt 0:08:07]} 15. Nxe7+ {[%emt 0:05:43]} Qxe7 {[%emt 0:00:17]} 16. Nf4 {[%emt 0:00:40]} Nxf4 {[%emt 0:03:44]} 17. Bxf4 $11 {[%emt 0:01:03]} 1/2-1/2

[Event "ESP-ch Seniors 2017"]
[Site "Altea"]
[Date "2017.10.11"]
[Round "5"]
[White "Simon Padros, Emili"]
[Black "Martinez De Soria Gordon, Jose Manuel"]
[Result "1-0"]
[ECO "B43"]
[WhiteElo "2153"]
[BlackElo "1862"]
[Annotator "ChessBase"]
[PlyCount "75"]
[EventDate "2017.??.??"]
[EventType "swiss"]
[EventCountry "ESP"]
[SourceTitle "playchess.com"]
[Source "ChessBase"]
[SourceQuality "1"]
[TimeControl "5400+30"]

1. e4 {[%emt 0:00:00]} c5 {[%emt 0:03:59]} 2. Nc3 {[%emt 0:00:00]} e6 {[%emt 0:00:28]} 3. Nf3 {[%emt 0:00:37]} a6 {[%emt 0:00:21]} 4. d4 {[%emt 0:00:23]} cxd4 {[%emt 0:00:07]} 5. Nxd4 {[%emt 0:00:09]} Qc7 {[%emt 0:00:08]} 6. g3 {[%emt 0:01:02]} Bb4 {[%emt 0:04:34]} 7. Nde2 {[%emt 0:02:29]} Ne7 {[%emt 0:01:26]} 8. Bg2 {[%emt 0:01:33]} d6 {[%emt 0:03:36]} 9. O-O {[%emt 0:01:25]} Bd7 {[%emt 0:00:33]} 10. Qd4 {[%emt 0:05:52]} Bxc3 {[%emt 0:04:23]} 11. Nxc3 {[%emt 0:01:05]} e5 {[%emt 0:01:38]} 12. Qd3 {[%emt 0:05:48]} Nbc6 {[%emt 0:05:07]} 13. Be3 {[%emt 0:05:25]} Rd8 {[%emt 0:10:45]} 14. a3 {[%emt 0:06:45]} O-O {[%emt 0:02:58]} 15. b4 {[%emt 0:09:25]} b5 {[%emt 0:08:29]} 16. Rac1 {[%emt 0:06:15]} Be6 {[%emt 0:06:48]} 17. Nd5 {[%emt 0:01:24]} Qb7 {[%emt 0:04:52]} 18. Rfd1 {[%emt 0:03:39]} Bxd5 {[%emt 0:03:54]} 19. exd5 {[%emt 0:00:38]} Nb8 {[%emt 0:00:22]} 20. c4 {[%emt 0:15:46]} bxc4 {[%emt 0:00:16]} 21. Rxc4 {[%emt 0:00:04]} Rc8 {[%emt 0:00:18]} 22. Rxc8 {[%emt 0:00:37]} Rxc8 {[%emt 0:00:03]} 23. Bh3 {[%emt 0:00:37]} Rf8 {[%emt 0:03:40]} 24. Bg5 {[%emt 0:02:29]} h6 {[%emt 0:01:20]} 25. Bxe7 {[%emt 0:00:38]} Qxe7 {[%emt 0:00:02]} 26. Rc1 {[%emt 0:00:36]} Qg5 {[%emt 0:02:39]} 27. Qe3 {[%emt 0:01:41]} Qh5 {[%emt 0:02:06]} 28. Bf1 {[%emt 0:05:07]} f5 {[%emt 0:00:14]} 29. Rc7 {[%emt 0:01:00]} f4 {[%emt 0:01:01]} 30. Qa7 {[%emt 0:00:44]} Qg5 {[%emt 0:03:50]} 31. Rb7 {[%emt 0:01:22]} fxg3 {[%emt 0:10:34]} 32. hxg3 {[%emt 0:00:32]} Rf3 {[%emt 0:00:37]} 33. Rxb8+ {[%emt 0:02:56]} Kh7 {[%emt 0:00:01]} 34. Bg2 {[%emt 0:01:04]} Qc1+ {[%emt 0:00:32]} 35. Kh2 {[%emt 0:00:36]} e4 {[%emt 0:00:41]} 36. Bxf3 {[%emt 0:01:32]} exf3 {[%emt 0:00:05]} 37. Qe3 {[%emt 0:01:22]} Qd1 {[%emt 0:00:04]} 38. Qe4+ {[%emt 0:00:14]} 1-0

[Event "ESP-ch Seniors 2017"]
[Site "Altea"]
[Date "2017.10.11"]
[Round "5"]
[White "Acebal Muniz, Antonio"]
[Black "Riquelme Valero, Manuel Damian"]
[Result "1/2-1/2"]
[ECO "A88"]
[WhiteElo "2091"]
[BlackElo "2147"]
[Annotator "NA"]
[PlyCount "21"]
[EventDate "2017.??.??"]
[EventType "swiss"]
[EventCountry "ESP"]
[SourceTitle "playchess.com"]
[Source "ChessBase"]
[SourceQuality "1"]
[TimeControl "5400+30"]

1. Nf3 {[%emt 0:08:12]} f5 {[%emt 0:00:51]} 2. d4 {[%emt 0:01:24]} Nf6 {[%emt 0:00:10]} 3. c4 {[%emt 0:00:32]} g6 {[%emt 0:00:57]} 4. g3 {[%emt 0:00:42]} Bg7 {[%emt 0:00:17]} 5. Bg2 {[%emt 0:00:20]} O-O {[%emt 0:00:12]} 6. O-O {[%emt 0:00:23]} d6 {[%emt 0:00:42]} 7. Nc3 {[%emt 0:02:25]} c6 {[%emt 0:00:22]} 8. d5 {[%emt 0:01:41]} e5 {[%emt 0:01:04]} 9. dxe6 {[%emt 0:00:30]} Bxe6 {[%emt 0:00:13]} 10. Qd3 {[%emt 0:01:18]} Na6 11. Ng5 1/2-1/2

[Event "ESP-ch Seniors 2017"]
[Site "Altea"]
[Date "2017.10.11"]
[Round "5"]
[White "Ladron De Guevara Galar, Fco J"]
[Black "Lloret Ramis, Juan Jose"]
[Result "0-1"]
[ECO "E06"]
[WhiteElo "2081"]
[BlackElo "2120"]
[Annotator "ChessBase"]
[PlyCount "94"]
[EventDate "2017.??.??"]
[EventType "swiss"]
[EventCountry "ESP"]
[SourceTitle "playchess.com"]
[Source "ChessBase"]
[SourceQuality "1"]
[TimeControl "5400+30"]

1. d4 {[%emt 0:00:00]} d5 {[%emt 0:00:25]} 2. c4 {[%emt 0:00:00]} e6 {[%emt 0:00:14]} 3. Nf3 {[%emt 0:00:26]} Nf6 {[%emt 0:00:13]} 4. g3 {[%emt 0:00:28]} Be7 {[%emt 0:00:18]} 5. Bg2 {[%emt 0:00:22]} O-O {[%emt 0:00:15]} 6. O-O {[%emt 0:00:13]} dxc4 {[%emt 0:00:21]} 7. Qc2 {[%emt 0:00:36]} a6 {[%emt 0:00:14]} 8. a4 {[%emt 0:00:48]} Bd7 {[%emt 0:02:21]} 9. Bg5 {[%emt 0:04:59]} Bc6 {[%emt 0:05:06]} 10. Qxc4 {[%emt 0:04:14]} Bd5 {[%emt 0:13:41]} 11. Qc2 {[%emt 0:01:59]} Be4 {[%emt 0:11:04]} 12. Qc1 {[%emt 0:05:05]} Nbd7 {[%emt 0:16:31]} 13. Nc3 {[%emt 0:01:24]} Bc6 {[%emt 0:02:13]} 14. Qc2 {[%emt 0:05:51]} Nd5 {[%emt 0:14:07]} 15. Bd2 {[%emt 0:19:38]} Nb4 {[%emt 0:03:06]} 16. Qb3 {[%emt 0:02:38]} a5 {[%emt 0:01:51]} 17. e4 {[%emt 0:00:59]} Nf6 {[%emt 0:03:56]} 18. Rfe1 {[%emt 0:02:32]} h6 {[%emt 0:00:29]} 19. Rad1 {[%emt 0:04:26]} b6 {[%emt 0:00:26]} 20. Bf4 {[%emt 0:04:18]} Bb7 {[%emt 0:07:28]} 21. Ne5 {[%emt 0:04:46]} Bd6 {[%emt 0:03:21]} 22. Bh3 {[%emt 0:15:38]} Re8 {[%emt 0:04:57]} 23. Bc1 {[%emt 0:08:30]} Bxe5 {[%emt 0:00:48]} 24. dxe5 {[%emt 0:00:25]} Nd7 {[%emt 0:00:05]} 25. Be3 {[%emt 0:01:19]} Qe7 {[%emt 0:00:37]} 26. f4 {[%emt 0:01:28]} Nc5 {[%emt 0:00:40]} 27. Qc4 {[%emt 0:01:41]} Ncd3 {[%emt 0:03:09]} 28. Rxd3 {[%emt 0:03:41]} Ba6 {[%emt 0:00:02]} 29. Nb5 {[%emt 0:00:23]} Nxd3 {[%emt 0:00:11]} 30. Qxd3 {[%emt 0:01:15]} c6 {[%emt 0:00:15]} 31. Bxb6 {[%emt 0:00:24]} cxb5 {[%emt 0:00:27]} 32. axb5 {[%emt 0:00:02]} Qb4 {[%emt 0:00:25]} 33. Qe3 {[%emt 0:03:22]} Bxb5 {[%emt 0:00:30]} 34. Bc5 {[%emt 0:00:34]} Qxb2 {[%emt 0:00:25]} 35. f5 {[%emt 0:00:28]} Qxe5 {[%emt 0:02:56]} 36. Bd4 {[%emt 0:00:02]} Qc7 {[%emt 0:00:29]} 37. e5 {[%emt 0:00:24]} exf5 {[%emt 0:00:57]} 38. Bxf5 {[%emt 0:00:15]} Bd7 39. Rc1 Qxc1+ {[%emt 0:02:53]} 40. Qxc1 {[%emt 0:00:04]} Bxf5 {[%emt 0:00:02]} 41. Qf4 {[%emt 0:00:26]} Be6 {[%emt 0:00:03]} 42. Bc5 {[%emt 0:01:35]} a4 {[%emt 0:00:02]} 43. Ba3 {[%emt 0:00:17]} Rec8 {[%emt 0:00:21]} 44. Qb4 {[%emt 0:01:01]} Rc4 {[%emt 0:00:10]} 45. Qd6 {[%emt 0:00:05]} Rac8 {[%emt 0:00:04]} 46. Kf1 {[%emt 0:00:57]} Re4 {[%emt 0:00:27]} 47. Qd3 {[%emt 0:00:25]} Bc4 {[%emt 0:00:12]} 0-1

[Event "ESP-ch Seniors 2017"]
[Site "Altea"]
[Date "2017.10.11"]
[Round "5"]
[White "Clari Mascarell, Jose Javier"]
[Black "Nunez Munoz, Jesus"]
[Result "1/2-1/2"]
[ECO "A46"]
[WhiteElo "2047"]
[BlackElo "2199"]
[Annotator "ChessBase"]
[PlyCount "172"]
[EventDate "2017.??.??"]
[EventType "swiss"]
[EventCountry "ESP"]
[SourceTitle "playchess.com"]
[Source "ChessBase"]
[SourceQuality "1"]
[TimeControl "5400+30"]

1. d4 {[%emt 0:00:57]} Nf6 {[%emt 0:00:25]} 2. Nf3 {[%emt 0:06:27]} e6 {[%emt 0:00:13]} 3. Bg5 {[%emt 0:04:38]} c5 {[%emt 0:00:22]} 4. e3 {[%emt 0:01:51]} cxd4 {[%emt 0:01:59]} 5. exd4 {[%emt 0:00:52]} b6 {[%emt 0:00:06]} 6. Bd3 {[%emt 0:00:31]} Bb7 {[%emt 0:00:05]} 7. O-O {[%emt 0:00:05]} Be7 {[%emt 0:00:22]} 8. Qe2 {[%emt 0:00:11]} O-O {[%emt 0:00:22]} 9. Nbd2 {[%emt 0:00:17]} d6 {[%emt 0:01:16]} 10. c3 {[%emt 0:03:42]} Nbd7 {[%emt 0:00:37]} 11. Bh4 {[%emt 0:03:52]} Re8 {[%emt 0:07:28]} 12. Rfe1 {[%emt 0:26:08]} Qc7 {[%emt 0:01:13]} 13. Ne4 {[%emt 0:05:50]} Nxe4 {[%emt 0:05:49]} 14. Bxe4 {[%emt 0:03:28]} Bxh4 {[%emt 0:00:46]} 15. Nxh4 {[%emt 0:01:24]} Bxe4 {[%emt 0:00:35]} 16. Qxe4 {[%emt 0:00:05]} Nf6 {[%emt 0:00:13]} 17. Qd3 {[%emt 0:02:05]} Qb7 {[%emt 0:05:46]} 18. Nf3 {[%emt 0:01:54]} Rac8 {[%emt 0:08:09]} 19. h3 {[%emt 0:01:06]} b5 {[%emt 0:01:31]} 20. a3 {[%emt 0:00:10]} h6 {[%emt 0:01:05]} 21. Nd2 {[%emt 0:00:44]} a5 {[%emt 0:06:03]} 22. Rac1 {[%emt 0:12:05]} Rc7 {[%emt 0:09:15]} 23. Ne4 {[%emt 0:05:55]} Nxe4 {[%emt 0:01:00]} 24. Rxe4 {[%emt 0:05:06]} Qd5 {[%emt 0:08:35]} 25. Re2 {[%emt 0:03:38]} Rec8 {[%emt 0:00:21]} 26. Rec2 {[%emt 0:02:43]} g6 {[%emt 0:06:11]} 27. Kh2 {[%emt 0:02:55]} Kg7 {[%emt 0:00:08]} 28. f4 {[%emt 0:01:45]} h5 {[%emt 0:05:32]} 29. Kg3 {[%emt 0:00:58]} e5 {[%emt 0:01:05]} 30. fxe5 {[%emt 0:01:03]} dxe5 {[%emt 0:00:05]} 31. Rd2 {[%emt 0:01:12]} e4 {[%emt 0:00:31]} 32. Qe3 {[%emt 0:00:14]} b4 {[%emt 0:03:44]} 33. axb4 {[%emt 0:00:28]} axb4 {[%emt 0:00:05]} 34. Rdc2 {[%emt 0:01:35]} f5 {[%emt 0:01:56]} 35. Qf4 {[%emt 0:00:47]} Kh7 {[%emt 0:03:50]} 36. Kh2 {[%emt 0:00:01]} Kg7 {[%emt 0:07:52]} 37. Ra1 {[%emt 0:01:04]} Re7 {[%emt 0:01:54]} 38. Ra6 {[%emt 0:00:24]} Qb5 {[%emt 0:07:27]} 39. Qg5 {[%emt 0:00:49]} Qxa6 {[%emt 0:00:16]} 40. Qxe7+ {[%emt 0:00:01]} Kh6 {[%emt 0:01:11]} 41. Qxb4 {[%emt 0:00:38]} Qd3 {[%emt 0:00:38]} 42. Rc1 {[%emt 0:00:46]} Re8 {[%emt 0:01:38]} 43. Qd6 {[%emt 0:00:14]} Qd2 {[%emt 0:01:03]} 44. Rf1 {[%emt 0:00:01]} Qg5 {[%emt 0:02:10]} 45. Qf4 {[%emt 0:00:32]} e3 {[%emt 0:00:14]} 46. Qxg5+ {[%emt 0:00:37]} Kxg5 {[%emt 0:00:07]} 47. Kg3 {[%emt 0:00:02]} Rb8 {[%emt 0:01:00]} 48. h4+ {[%emt 0:00:46]} Kf6 {[%emt 0:00:05]} 49. Rb1 {[%emt 0:00:43]} g5 {[%emt 0:00:04]} 50. hxg5+ {[%emt 0:00:01]} Kxg5 {[%emt 0:00:07]} 51. Kf3 {[%emt 0:00:03]} f4 {[%emt 0:00:05]} 52. b4 {[%emt 0:00:41]} Rc8 {[%emt 0:00:03]} 53. Rc1 {[%emt 0:00:08]} Kf5 {[%emt 0:00:24]} 54. Rh1 {[%emt 0:01:51]} Kg5 {[%emt 0:00:04]} 55. Rc1 {[%emt 0:00:46]} Kf5 {[%emt 0:00:04]} 56. Ra1 {[%emt 0:00:03]} Rxc3 {[%emt 0:02:49]} 57. Ra5+ {[%emt 0:00:01]} Ke6 {[%emt 0:00:12]} 58. Kxf4 {[%emt 0:00:06]} e2 {[%emt 0:00:06]} 59. Re5+ {[%emt 0:00:04]} Kd6 {[%emt 0:00:06]} 60. Rxe2 {[%emt 0:00:06]} Rc4 {[%emt 0:00:01]} 61. Ke4 {[%emt 0:00:19]} Rxb4 {[%emt 0:00:05]} 62. Ra2 {[%emt 0:00:21]} Rb3 {[%emt 0:00:51]} 63. Ra6+ {[%emt 0:00:56]} Kd7 {[%emt 0:00:07]} 64. Rg6 {[%emt 0:01:12]} h4 {[%emt 0:00:08]} 65. Ke5 {[%emt 0:00:23]} h3 {[%emt 0:00:19]} 66. Rg7+ {[%emt 0:01:37]} Kc8 {[%emt 0:01:31]} 67. gxh3 {[%emt 0:00:52]} Rxh3 {[%emt 0:00:06]} 68. d5 {[%emt 0:00:08]} Rh6 {[%emt 0:00:17]} 69. Kd4 {[%emt 0:00:44]} Kd8 {[%emt 0:00:14]} 70. Kc5 {[%emt 0:00:02]} Kc8 {[%emt 0:00:23]} 71. Rg4 {[%emt 0:00:59]} Kd7 {[%emt 0:00:19]} 72. Ra4 {[%emt 0:00:08]} Rg6 {[%emt 0:00:23]} 73. Rb4 {[%emt 0:00:14]} Kc7 {[%emt 0:00:20]} 74. Re4 {[%emt 0:00:48]} Kd7 {[%emt 0:00:06]} 75. Ra4 {[%emt 0:00:11]} Rh6 {[%emt 0:00:28]} 76. Ra7+ {[%emt 0:00:29]} Kd8 {[%emt 0:00:14]} 77. Ra8+ {[%emt 0:00:50]} Kd7 {[%emt 0:00:10]} 78. Rg8 {[%emt 0:00:11]} Kc7 {[%emt 0:00:49]} 79. Rg7+ {[%emt 0:00:11]} Kd8 {[%emt 0:00:06]} 80. Rb7 {[%emt 0:01:20]} Kc8 {[%emt 0:00:32]} 81. Re7 {[%emt 0:00:30]} Kd8 {[%emt 0:00:48]} 82. Rg7 {[%emt 0:00:34]} Kc8 {[%emt 0:00:12]} 83. Ra7 {[%emt 0:00:46]} Kd8 {[%emt 0:00:09]} 84. d6 {[%emt 0:00:27]} Rh1 {[%emt 0:00:08]} 85. Ra8+ {[%emt 0:00:06]} Kd7 {[%emt 0:00:07]} 86. Ra7+ {[%emt 0:00:01]} Kd8 {[%emt 0:00:06]} 1/2-1/2

[Event "ESP-ch Seniors 2017"]
[Site "Altea"]
[Date "2017.10.11"]
[Round "5"]
[White "Anguera Maestro, Jaime"]
[Black "Celaya Tapiz, Jose Maria"]
[Result "1/2-1/2"]
[ECO "E90"]
[WhiteElo "2029"]
[BlackElo "2196"]
[Annotator "NA"]
[PlyCount "47"]
[EventDate "2017.??.??"]
[EventType "swiss"]
[EventCountry "ESP"]
[SourceTitle "playchess.com"]
[Source "ChessBase"]
[SourceQuality "1"]
[TimeControl "5400+30"]

1. d4 {[%emt 0:00:00]} Nf6 {[%emt 0:00:42]} 2. c4 {[%emt 0:00:00]} d6 {[%emt 0:00:31]} 3. Nc3 {[%emt 0:00:21]} g6 {[%emt 0:00:09]} 4. e4 {[%emt 0:00:26]} Bg7 {[%emt 0:00:13]} 5. Nf3 {[%emt 0:03:13]} O-O {[%emt 0:00:16]} 6. h3 {[%emt 0:00:08]} Nc6 {[%emt 0:00:45]} 7. Be3 {[%emt 0:04:26]} e5 {[%emt 0:00:56]} 8. d5 {[%emt 0:02:45]} Ne7 {[%emt 0:00:11]} 9. Qd2 {[%emt 0:00:34]} Nd7 {[%emt 0:00:17]} 10. Bd3 {[%emt 0:02:23]} f5 {[%emt 0:01:21]} 11. Bh6 {[%emt 0:03:17]} Nc5 {[%emt 0:01:49]} 12. Bxg7 {[%emt 0:01:13]} Nxd3+ {[%emt 0:01:51]} 13. Qxd3 {[%emt 0:00:12]} Kxg7 {[%emt 0:00:13]} 14. Nd2 {[%emt 0:04:37]} fxe4 {[%emt 0:00:24]} 15. Ndxe4 {[%emt 0:00:31]} Nf5 {[%emt 0:04:05]} 16. O-O-O {[%emt 0:06:15]} Nd4 {[%emt 0:00:30]} 17. Ne2 {[%emt 0:01:08]} Nxe2+ {[%emt 0:01:36]} 18. Qxe2 {[%emt 0:00:02]} Bf5 {[%emt 0:00:15]} 19. f3 {[%emt 0:21:15]} Bxe4 {[%emt 0:00:17]} 20. fxe4 {[%emt 0:00:04]} b6 {[%emt 0:00:25]} 21. Rhf1 {[%emt 0:02:54]} a5 {[%emt 0:06:18]} 22. Rxf8 {[%emt 0:02:54]} Qxf8 {[%emt 0:00:11]} 23. Rf1 {[%emt 0:00:06]} Qe7 {[%emt 0:00:15]} 24. Qf3 1/2-1/2